bitfinex/quotes_BTCUSD_20240703
["timestamp","ask_amount","ask_price","bid_price","bid_amount"]
[1720034690941,0.0002,59971.0,59970.0,2.7984988]
[1720034691419,0.0002,59971.0,59970.0,2.8124988]
[1720034691651,0.0002,59971.0,59970.0,3.1459988]
[1720034691849,0.0002,59971.0,59970.0,3.1429178]
[1720034692266,0.0002,59971.0,59970.0,3.1149178]
[1720034692474,0.0002,59971.0,59970.0,3.1289178]
[1720034692649,0.0002,59971.0,59970.0,3.2289178]
[1720034692859,0.0002,59971.0,59970.0,3.4870178]
[1720034693071,0.0002,59971.0,59970.0,3.4871178]
[1720034693566,0.0002,59971.0,59970.0,3.5011178]
[1720034693968,0.0002,59971.0,59970.0,3.8066178]
[1720034694172,0.0002,59971.0,59970.0,3.5011178]
[1720034694567,0.0002,59971.0,59970.0,3.53167274]
[1720034694980,0.48093494,59987.0,59986.0,1.466938]
[1720034695180,0.48093494,59987.0,59986.0,1.6502368]
[1720034695404,0.08015582,59995.0,59994.0,0.166683]
[1720034695577,0.08015582,59995.0,59994.0,0.3269818]
[1720034695985,0.08015582,59995.0,59994.0,0.6603478]
[1720034696191,0.08015582,59995.0,59994.0,0.9937138]
[1720034696400,0.08106883,60019.0,59998.0,0.3]
[1720034696779,0.00091301,60019.0,60018.0,0.166616]
[1720034697223,0.00091301,60019.0,60018.0,0.499849]
[1720034697438,0.00091301,60019.0,60018.0,0.522849]
[1720034697847,0.00091301,60019.0,60018.0,1.0163808]
[1720034698017,0.00091301,60019.0,60018.0,1.0303808]
[1720034698160,0.00091301,60019.0,60018.0,1.3756138]
[1720034698362,0.00091301,60019.0,60018.0,1.3616138]
[1720034698562,0.00091301,60019.0,60018.0,1.3636138]
[1720034699529,0.00091301,60019.0,60018.0,2.1107468]
[1720034699841,0.00091301,60019.0,60018.0,2.1106468]
[1720034700325,0.00091301,60019.0,60018.0,2.1105468]
[1720034700554,0.00091301,60019.0,60018.0,1.8105468]
[1720034700755,0.00091301,60019.0,60018.0,1.4773138]
[1720034700979,0.00091301,60019.0,60018.0,1.4772138]
[1720034701197,0.00091301,60019.0,60018.0,1.7772138]
[1720034701551,0.00091301,60019.0,60018.0,1.4772138]
[1720034702113,0.00091301,60019.0,60018.0,1.7772138]
[1720034702287,0.00091301,60019.0,60018.0,1.8105338]
[1720034702490,0.00091301,60019.0,60018.0,2.1437668]
[1720034702700,0.00091301,60019.0,60018.0,1.8105338]
[1720034703306,0.00091301,60019.0,60018.0,1.5105338]
[1720034703530,0.00091301,60019.0,60018.0,2.5769998]
[1720034703742,0.00091301,60019.0,60018.0,2.4896668]
[1720034703945,0.00091301,60019.0,60018.0,2.4756668]
[1720034704154,0.00091301,60019.0,60018.0,2.3896668]
[1720034704359,0.00091301,60019.0,60018.0,2.4896668]
[1720034704564,0.00091301,60019.0,60018.0,2.4756668]
[1720034704776,0.00091301,60019.0,60018.0,1.72858667]
[1720034704951,0.00091301,60019.0,60018.0,1.75658667]
[1720034705131,0.00091301,60019.0,60018.0,1.74258667]
[1720034705344,0.00091301,60019.0,60018.0,2.02858667]
[1720034705536,0.00091301,60019.0,60018.0,2.05658667]
[1720034705722,0.00091301,60019.0,60018.0,2.42313967]
[1720034705938,0.00091301,60019.0,60018.0,2.40913967]
[1720034706361,0.00917401,60031.0,60030.0,0.499749]
[1720034706567,0.00917401,60031.0,60030.0,1.0161138]
[1720034707410,0.00917401,60031.0,60030.0,1.0160138]
[1720034707811,0.00917401,60031.0,60030.0,1.3631798]
[1720034708215,0.00917401,60031.0,60030.0,1.9823458]
[1720034708440,0.00917401,60031.0,60030.0,2.4371458]
[1720034708809,0.00917401,60031.0,60030.0,3.2822458]
[1720034709010,0.08015582,60056.0,60032.0,0.1]
[1720034709011,0.08015582,60039.0,60032.0,0.1]
[1720034709221,0.2999,60044.0,60033.0,0.1602988]
[1720034709437,0.48093494,60044.0,60037.0,0.1602988]
[1720034709633,0.312,60046.0,60044.0,0.166544]
[1720034709788,0.08015582,60047.0,60046.0,0.166538]
[1720034710156,0.3275,60055.0,60054.0,0.166516]
[1720034710365,0.08015582,60056.0,60054.0,0.3268148]
[1720034710565,0.08015582,60056.0,60055.0,0.1602988]
[1720034710767,0.0341057,60058.0,60055.0,0.1602988]
[1720034710980,0.08015582,60056.0,60055.0,0.1602988]
[1720034711178,0.08015582,60056.0,60055.0,0.1832988]
[1720034711637,0.08015582,60056.0,60055.0,0.1831988]
[1720034711994,0.08015582,60056.0,60055.0,0.2081988]
[1720034712271,0.08015582,60056.0,60055.0,0.1971988]
[1720034712481,0.80646682,60056.0,60055.0,0.047]
[1720034712861,1.13948882,60056.0,60055.0,0.014]
[1720034713180,0.57995582,60056.0,60055.0,0.014]
[1720034713382,0.08015582,60056.0,60040.0,0.03332]
[1720034713606,0.08015582,60056.0,60045.0,0.832704]
[1720034713607,0.08015582,60046.0,60045.0,0.832704]
[1720034713810,0.08015582,60056.0,60055.0,0.166514]
[1720034714014,0.08015582,60056.0,60055.0,0.1602988]
[1720034714170,0.08015582,60056.0,60055.0,0.1742988]
[1720034714371,0.08015582,60056.0,60055.0,0.3638128]
[1720034714851,0.08015582,60056.0,60055.0,1.0298688]
[1720034715063,0.08015582,60063.0,60062.0,0.166494]
[1720034715188,0.08015582,60063.0,60062.0,0.6827818]
[1720034716322,0.00917401,60068.0,60067.0,0.499441]
[1720034716520,0.00917401,60068.0,60067.0,2.1930618]
[1720034716742,0.00917401,60073.0,60072.0,0.799399]
[1720034716942,0.00917401,60073.0,60072.0,1.4156308]
[1720034717150,0.009185,60080.0,60079.0,0.799342]
[1720034717396,0.009185,60080.0,60079.0,1.7254308]
[1720034717567,0.009185,60080.0,60079.0,1.7587508]
[1720034717717,0.009185,60080.0,60079.0,1.7817508]
[1720034718359,0.009185,60080.0,60079.0,1.7957508]
[1720034718569,0.009185,60080.0,60079.0,2.9998458]
[1720034718780,0.009185,60080.0,60079.0,2.0261508]
[1720034718977,0.009185,60080.0,60079.0,1.3743608]
[1720034719237,0.009185,60080.0,60079.0,2.0261508]
[1720034719440,0.009185,60080.0,60079.0,2.3261508]
[1720034719643,0.009185,60080.0,60079.0,2.0261508]
[1720034719861,0.009185,60080.0,60079.0,2.0401508]
[1720034720066,0.009185,60080.0,60079.0,2.4730458]
[1720034720281,0.009196,60088.0,60083.0,1.298372]
[1720034720484,0.273496,60084.0,60083.0,1.3586708]
[1720034720685,0.039196,60084.0,60083.0,0.1602988]
[1720034721090,0.039196,60084.0,60083.0,1.5368788]
[1720034721685,0.039196,60084.0,60083.0,0.1742988]
[1720034721886,0.039196,60084.0,60083.0,0.1882988]
[1720034722278,0.039196,60084.0,60083.0,0.1742988]
[1720034722435,0.039196,60084.0,60083.0,0.1882988]
[1720034722825,0.009196,60084.0,60083.0,0.1741988]
[1720034723421,0.009196,60084.0,60083.0,0.6735068]
[1720034723637,0.639096,60084.0,60083.0,0.1880988]
[1720034723833,0.639096,60084.0,60083.0,0.014]
[1720034723834,1.392929,60084.0,60083.0,0.014]
[1720034724052,2.123063,60084.0,60083.0,0.014]
[1720034724262,2.65583,60084.0,60083.0,0.014]
[1720034724467,0.03,60069.0,60068.0,0.4676]
[1720034724670,0.11015582,60069.0,60068.0,0.6278988]
[1720034725089,1.24243082,60069.0,60068.0,0.1602988]
[1720034725303,0.03,60069.0,60068.0,0.1602988]
[1720034725731,0.03,60069.0,60068.0,0.66305969]
[1720034725897,0.03,60069.0,60068.0,0.9926858]
[1720034726454,0.03,60069.0,60068.0,1.0156858]
[1720034726824,0.03,60069.0,60068.0,0.1832988]
[1720034726954,0.03,60069.0,60068.0,0.3497758]
[1720034727154,0.03,60069.0,60068.0,1.0156858]
[1720034727387,0.03,60069.0,60068.0,1.3819608]
[1720034727574,0.0299,60069.0,60068.0,1.0630058]
[1720034727779,0.0299,60069.0,60068.0,1.9340058]
[1720034727976,0.0299,60069.0,60068.0,2.4246228]
[1720034728181,0.0299,60069.0,60068.0,2.3052128]
[1720034728182,0.014,60069.0,60068.0,2.3052128]
[1720034728403,0.014,60069.0,60068.0,2.9521678]
[1720034728606,0.009396,60084.0,60083.0,0.529308]
[1720034728804,0.009396,60084.0,60083.0,0.6896068]
[1720034729228,0.009396,60084.0,60083.0,1.0224788]
[1720034729428,0.009396,60084.0,60083.0,1.7373708]
[1720034729632,0.009396,60084.0,60083.0,1.7374708]
[1720034730197,0.009396,60084.0,60083.0,2.3507708]
[1720034730396,0.009396,60084.0,60083.0,2.3737708]
[1720034730593,0.009396,60084.0,60083.0,2.3877708]
[1720034730794,0.009396,60084.0,60083.0,2.8206428]
[1720034731026,0.009396,60084.0,60083.0,2.5346428]
[1720034731218,0.009396,60084.0,60083.0,2.0877708]
[1720034731638,0.009396,60084.0,60083.0,1.4027068]
[1720034731867,0.009396,60084.0,60083.0,1.0894068]
[1720034732069,0.009396,60084.0,60083.0,1.4082788]
[1720034732267,0.009396,60084.0,60083.0,0.2273988]
[1720034732471,0.023296,60084.0,60083.0,0.2183988]
[1720034732674,0.023296,60084.0,60083.0,0.2043988]
[1720034732893,0.083296,60084.0,60083.0,0.1904988]
[1720034733095,0.915463,60084.0,60083.0,0.0302]
[1720034733349,2.31943,60084.0,60083.0,0.0302]
[1720034733975,2.31943,60084.0,60083.0,0.0442]
[1720034734190,2.31943,60084.0,60083.0,0.0582]
[1720034734437,2.31943,60084.0,60083.0,0.0442]
[1720034734598,2.31943,60084.0,60083.0,0.0302]
[1720034734821,2.34943,60084.0,60083.0,0.0312]
[1720034735023,2.34943,60084.0,60083.0,0.0302]
[1720034735738,2.31943,60084.0,60083.0,0.0302]
[1720034736064,2.31943,60084.0,60083.0,0.0312]
[1720034737108,1.154496,60084.0,60083.0,0.0312]
[1720034737352,1.454396,60084.0,60083.0,0.0542]
[1720034737533,1.620829,60084.0,60083.0,0.0532]
[1720034737736,1.621829,60084.0,60083.0,0.0532]
[1720034737941,2.62043,60084.0,60083.0,0.0302]
[1720034738115,1.622829,60084.0,60083.0,0.0302]
[1720034738319,1.156496,60084.0,60083.0,0.0532]
[1720034738519,0.585196,60084.0,60083.0,0.2134988]
[1720034738735,0.585196,60084.0,60083.0,0.3829348]
[1720034738736,0.025296,60084.0,60083.0,0.3829348]
[1720034738936,0.025296,60084.0,60083.0,1.0456788]
[1720034738937,0.023296,60084.0,60083.0,1.0456788]
[1720034739137,0.023296,60084.0,60083.0,0.7128068]
[1720034739337,0.024296,60084.0,60083.0,0.7128068]
[1720034739541,0.024296,60084.0,60083.0,1.0456788]
[1720034739758,0.024296,60084.0,60083.0,1.0789988]
[1720034740079,0.024296,60084.0,60083.0,1.9344508]
[1720034740293,0.024296,60084.0,60083.0,2.0344508]
[1720034740466,0.009396,60084.0,60083.0,2.0344508]
[1720034740908,0.009396,60084.0,60083.0,1.7275788]
[1720034741134,0.009396,60084.0,60083.0,1.7489388]
[1720034741316,0.009396,60084.0,60083.0,2.0344508]
[1720034741481,0.009396,60084.0,60083.0,2.0484508]
[1720034741674,0.009396,60084.0,60083.0,1.3687068]
[1720034742073,0.009396,60084.0,60083.0,2.0818108]
[1720034742515,0.009396,60084.0,60083.0,2.0344508]
[1720034742979,0.009396,60084.0,60083.0,1.0366788]
[1720034743118,0.009396,60084.0,60083.0,0.4709348]
[1720034743119,0.0088645,60084.0,60083.0,0.4709348]
[1720034743338,0.0088645,60084.0,60083.0,0.7898068]
[1720034743711,0.0088645,60084.0,60083.0,0.8038068]
[1720034743881,0.0088645,60084.0,60083.0,0.3184988]
[1720034744084,0.0088645,60084.0,60083.0,0.3044988]
[1720034744283,0.0088645,60084.0,60083.0,0.2134988]
[1720034744485,0.0088645,60084.0,60083.0,0.2274988]
[1720034744685,0.38238684,60084.0,60083.0,0.2044988]
[1720034745035,0.38238684,60084.0,60083.0,0.2184988]
[1720034745274,0.38238684,60084.0,60083.0,0.2044988]
[1720034745647,0.38238684,60084.0,60083.0,0.2184988]
[1720034746250,0.32238684,60084.0,60083.0,0.2414988]
[1720034746471,0.32238684,60084.0,60083.0,0.2274988]
[1720034746719,0.32238684,60084.0,60083.0,0.4079348]
[1720034746857,0.32238684,60084.0,60083.0,0.3939348]
[1720034747266,0.32238684,60084.0,60083.0,0.7148068]
[1720034747632,0.32238684,60084.0,60083.0,0.3859348]
[1720034747837,1.76892084,60084.0,60083.0,0.0502]
[1720034748009,1.76892084,60084.0,60083.0,0.0362]
[1720034748010,1.99535384,60084.0,60083.0,0.0362]
[1720034748408,1.99535384,60084.0,60083.0,0.0502]
[1720034748610,1.99535384,60084.0,60083.0,0.0362]
[1720034748817,1.99535384,60084.0,60083.0,0.0302]
[1720034749180,1.99535384,60084.0,60083.0,0.0442]
[1720034749637,1.99535384,60084.0,60083.0,0.0302]
[1720034750083,1.99535384,60084.0,60083.0,0.0312]
[1720034750241,2.32822084,60084.0,60083.0,0.0312]
[1720034750443,2.35822084,60084.0,60083.0,0.0312]
[1720034750645,2.35822084,60084.0,60083.0,0.0442]
[1720034751013,0.0739,60060.0,60056.0,0.03]
[1720034751142,0.0739,60060.0,60058.0,0.03]
[1720034751348,0.5733,60060.0,60059.0,0.1902988]
[1720034753098,0.0138,60060.0,60059.0,0.1902988]
[1720034753310,0.0138,60060.0,60059.0,0.2032988]
[1720034753918,0.0738,60060.0,60059.0,0.2132988]
[1720034754442,0.0738,60060.0,60059.0,0.2262988]
[1720034754803,0.075,60060.0,60059.0,0.2272988]
[1720034755139,0.074,60060.0,60059.0,0.2262988]
[1720034755338,0.014,60060.0,60059.0,0.2262988]
[1720034755541,0.0149,60060.0,60059.0,0.2272988]
[1720034755941,0.0749,60060.0,60059.0,0.2272988]
[1720034756154,0.5744,60060.0,60059.0,0.2143988]
[1720034756325,1.5403,60060.0,60059.0,0.0671]
[1720034756968,1.5403,60060.0,60059.0,0.0541]
[1720034757172,1.5403,60060.0,60059.0,0.0671]
[1720034757858,1.2063,60060.0,60059.0,0.0531]
[1720034758045,1.2063,60060.0,60059.0,0.0751]
[1720034758234,1.2073,60060.0,60059.0,0.0751]
[1720034758413,1.2073,60060.0,60059.0,0.0661]
[1720034758616,1.2073,60060.0,60059.0,0.0471]
[1720034758617,1.4072,60060.0,60059.0,0.0471]
[1720034759318,1.4072,60060.0,60059.0,0.0341]
[1720034759520,1.4072,60060.0,60059.0,0.0421]
[1720034760069,1.4072,60060.0,60059.0,0.0341]
[1720034760070,1.7402,60060.0,60059.0,0.0341]
[1720034760270,1.4072,60060.0,60059.0,0.0041]
[1720034760477,1.4082,60060.0,60059.0,0.0041]
[1720034760628,1.4072,60060.0,60059.0,0.0041]
[1720034760836,1.4062,60060.0,60059.0,0.0001]
[1720034761153,1.4142,60060.0,60059.0,0.0011]
[1720034761380,2.47079416,60060.0,60059.0,0.0001]
[1720034761561,2.47079416,60060.0,60041.0,1.2445]
[1720034761562,1.2066,60042.0,60041.0,1.2445]
[1720034761762,0.0137,60032.0,60028.0,0.4676]
[1720034761942,0.0137,60032.0,60023.0,0.066712]
[1720034761943,0.0737,60032.0,60029.0,0.1602988]
[1720034762142,0.0137,60032.0,60029.0,0.1602988]
[1720034762342,0.0737,60032.0,60029.0,0.1602988]
[1720034762546,0.0137,60030.0,60029.0,0.1602988]
[1720034762775,0.0137,60030.0,60022.0,0.00834]
[1720034762776,0.0137,60024.0,60022.0,0.00834]
[1720034762977,0.0137,60024.0,60023.0,0.1602988]
[1720034762978,0.0136,60024.0,60023.0,0.1602988]
[1720034763246,0.3602,60031.0,60023.0,0.1602988]
[1720034763247,0.0136,60030.0,60023.0,0.1602988]
[1720034763978,0.0136,60030.0,60028.0,0.014]
[1720034764184,0.0136,60030.0,60029.0,0.1602988]
[1720034764789,0.0002,60060.0,60051.0,0.529575]
[1720034764997,0.0002,60060.0,60059.0,1.111307]
[1720034765148,0.309096,60088.0,60059.0,1.111307]
[1720034765149,0.36,60083.0,60072.0,0.03]
[1720034765367,0.36,60083.0,60065.0,0.332967]
[1720034765368,0.06,60081.0,60074.0,0.03]
[1720034765569,0.01785505,60079.0,60074.0,0.03]
[1720034765777,0.01785505,60079.0,60066.0,0.1]
[1720034765778,0.01785505,60078.0,60076.0,0.03]
[1720034766197,0.01785505,60078.0,60077.0,0.053]
[1720034766715,0.07785505,60078.0,60077.0,0.053]
[1720034767459,0.01785505,60078.0,60077.0,0.065]
[1720034768054,0.34445505,60078.0,60077.0,0.053]
[1720034768256,1.17515505,60078.0,60077.0,0.053]
[1720034768863,1.17515505,60078.0,60077.0,0.062]
[1720034769093,1.17515505,60078.0,60077.0,0.053]
[1720034769672,1.17515505,60078.0,60077.0,0.06]
[1720034769840,1.17515505,60078.0,60077.0,0.053]
[1720034770021,0.60865505,60078.0,60077.0,0.2252988]
[1720034770204,0.27775505,60078.0,60077.0,0.2252988]
[1720034770417,0.57765505,60078.0,60077.0,0.2252988]
[1720034770646,0.57765505,60078.0,60077.0,0.2132988]
[1720034770848,0.27775505,60078.0,60077.0,0.2132988]
[1720034771052,0.27775505,60078.0,60077.0,0.2252988]
[1720034771053,0.21775505,60078.0,60077.0,0.2252988]
[1720034771252,0.21875505,60078.0,60077.0,0.2352988]
[1720034771425,0.21875505,60078.0,60077.0,0.2232988]
[1720034771632,0.21775505,60078.0,60077.0,0.2132988]
[1720034771861,0.01785505,60078.0,60077.0,0.3917518]
[1720034772065,0.01785505,60078.0,60077.0,0.7356578]
[1720034772066,0.01885505,60078.0,60077.0,0.7356578]
[1720034772278,0.01785505,60078.0,60077.0,0.3917518]
[1720034772651,0.01885505,60078.0,60077.0,0.7386578]
[1720034772865,0.01885505,60078.0,60077.0,1.6479698]
[1720034773069,0.01885505,60078.0,60077.0,1.6359698]
[1720034773264,0.01985505,60078.0,60077.0,1.6499698]
[1720034773486,0.01985505,60078.0,60077.0,1.6639698]
[1720034774350,0.01785505,60078.0,60077.0,1.6499698]
[1720034774852,0.01885505,60078.0,60077.0,1.6639698]
[1720034775664,0.01885505,60078.0,60077.0,2.0968758]
[1720034775865,0.01885505,60078.0,60077.0,2.1968758]
[1720034776285,0.01885505,60078.0,60077.0,2.2302358]
[1720034776699,0.01885505,60078.0,60077.0,2.5302358]
[1720034776920,0.001,60078.0,60077.0,2.2162358]
[1720034777145,0.001,60078.0,60077.0,2.5302358]
[1720034777349,0.001,60078.0,60077.0,2.1302358]
[1720034777901,0.001,60078.0,60077.0,2.1162358]
[1720034778083,0.001,60078.0,60077.0,2.1302358]
[1720034778271,0.0001,60083.0,60082.0,1.195073]
[1720034778505,0.0001,60083.0,60082.0,1.3783718]
[1720034779768,0.0001,60083.0,60082.0,1.3923718]
[1720034779980,0.0001,60083.0,60082.0,1.4063718]
[1720034780353,0.0002,60083.0,60082.0,1.4063718]
[1720034781013,0.0002,60083.0,60082.0,0.2182988]
[1720034781014,0.31805505,60083.0,60082.0,0.2182988]
[1720034781222,0.37805505,60083.0,60082.0,0.2182988]
[1720034781434,0.68635505,60083.0,60082.0,0.2182988]
[1720034781885,0.98625505,60083.0,60082.0,0.058]
[1720034782090,0.98625505,60083.0,60082.0,0.2182988]
[1720034782091,0.68635505,60083.0,60082.0,0.2182988]
[1720034782703,0.62635505,60083.0,60082.0,0.2182988]
[1720034783101,0.68635505,60083.0,60082.0,0.2182988]
[1720034783447,0.68635505,60083.0,60082.0,0.2412988]
[1720034784052,0.31805505,60083.0,60082.0,0.2412988]
[1720034784275,0.31805505,60083.0,60082.0,0.4077378]
[1720034784476,0.31805505,60083.0,60082.0,0.7406158]
[1720034784585,0.31805505,60083.0,60082.0,1.0734938]
[1720034784792,0.01805505,60083.0,60082.0,1.0734938]
[1720034785253,0.01896806,60083.0,60082.0,1.0734938]
[1720034785449,0.01896806,60083.0,60082.0,1.3295938]
[1720034789151,0.01896806,60083.0,60082.0,1.9775718]
[1720034789379,0.01896806,60083.0,60082.0,2.0775718]
[1720034791854,0.00111301,60083.0,60082.0,2.0775718]
[1720034792271,0.00111301,60083.0,60082.0,2.1109318]
[1720034792570,0.00111301,60083.0,60082.0,2.8104498]
[1720034792761,0.00111301,60083.0,60082.0,2.5104498]
[1720034793053,0.00111301,60083.0,60082.0,2.8104498]
[1720034793425,0.01785505,60093.0,60082.0,2.8104498]
[1720034793426,0.01785505,60093.0,60092.0,0.329771]
[1720034793625,0.01785505,60093.0,60092.0,1.5195158]
[1720034793832,0.01785505,60093.0,60092.0,2.1850618]
[1720034794618,0.01785505,60093.0,60092.0,2.1860618]
[1720034795030,0.01785505,60093.0,60092.0,2.1850618]
[1720034795229,0.01785505,60093.0,60092.0,2.1990618]
[1720034795657,0.01785505,60093.0,60092.0,2.2130618]
[1720034795866,0.01785505,60093.0,60092.0,2.1990618]
[1720034796279,0.01785505,60093.0,60092.0,2.2130618]
[1720034796525,0.01785505,60093.0,60092.0,2.5130618]
[1720034796698,0.01785505,60093.0,60092.0,2.4990618]
[1720034796955,0.01785505,60093.0,60092.0,2.5130618]
[1720034797405,0.01785505,60093.0,60092.0,2.4990618]
[1720034798001,0.01785505,60093.0,60092.0,2.5130618]
[1720034798464,0.01785505,60093.0,60092.0,2.4850618]
[1720034798864,0.01785505,60093.0,60092.0,2.4990618]
[1720034799074,0.01785505,60093.0,60092.0,2.1990618]
[1720034799679,0.01785505,60093.0,60092.0,2.1989618]
[1720034799893,0.01785505,60093.0,60092.0,2.2128618]
[1720034800093,0.08015582,60105.0,60104.0,0.528834]
[1720034800296,0.00917401,60109.0,60108.0,0.528801]
[1720034800514,0.00917401,60109.0,60108.0,1.3545678]
[1720034800719,0.00917401,60109.0,60108.0,1.3775678]
[1720034801335,0.00917401,60109.0,60108.0,1.8436618]
[1720034801735,0.00917401,60109.0,60108.0,2.1436618]
[1720034801935,0.00917401,60109.0,60108.0,1.8436618]
[1720034802343,0.00917401,60109.0,60108.0,1.8435618]
[1720034802543,0.00917401,60109.0,60108.0,2.1435618]
[1720034802745,0.00917401,60109.0,60108.0,1.8435618]
[1720034802946,0.00917401,60109.0,60108.0,1.5054678]
[1720034803159,0.00917401,60109.0,60108.0,1.4914678]
[1720034803362,0.00917401,60109.0,60108.0,1.5054678]
[1720034803559,0.00917401,60109.0,60108.0,1.4914678]
[1720034803784,0.00917401,60109.0,60108.0,1.5054678]
[1720034803991,0.00917401,60109.0,60108.0,1.5388278]
[1720034804219,0.00917401,60109.0,60108.0,1.5248278]
[1720034804593,0.00917401,60109.0,60108.0,1.5388278]
[1720034804843,0.00917401,60109.0,60108.0,2.1575618]
[1720034805039,0.00917401,60109.0,60108.0,2.2575618]
[1720034805244,0.00917401,60109.0,60108.0,2.6042958]
[1720034805451,0.00917401,60117.0,60112.0,1.960264]
[1720034805452,0.00234802,60113.0,60112.0,1.960264]
[1720034805643,0.00063204,60117.0,60116.0,0.662095]
[1720034805897,0.00063204,60117.0,60116.0,1.5877738]
[1720034806100,0.00063204,60117.0,60116.0,1.4877738]
[1720034806884,0.30063204,60117.0,60116.0,0.2039988]
[1720034807214,0.36063204,60117.0,60116.0,0.2039988]
[1720034807439,0.44078786,60117.0,60116.0,0.2039988]
[1720034807923,0.44078786,60117.0,60116.0,0.1899988]
[1720034808238,0.38078786,60117.0,60116.0,0.1899988]
[1720034809227,0.38078786,60117.0,60116.0,0.2269988]
[1720034809667,0.38078786,60117.0,60116.0,0.2209988]
[1720034810046,0.38078786,60117.0,60116.0,0.2259988]
[1720034810247,0.38078786,60117.0,60116.0,0.2339988]
[1720034810617,0.38078786,60117.0,60116.0,0.2129988]
[1720034810818,0.74068786,60117.0,60116.0,0.2119988]
[1720034811018,0.74068786,60117.0,60116.0,0.0517]
[1720034811019,1.74451386,60117.0,60116.0,0.0517]
[1720034811242,2.66858186,60117.0,60116.0,0.0437]
[1720034811480,1.37062986,60117.0,60116.0,0.2039988]
[1720034811624,1.67052986,60117.0,60116.0,0.0437]
[1720034812008,2.33589786,60117.0,60116.0,0.0437]
[1720034812224,2.69858186,60117.0,60116.0,0.0297]
[1720034812565,2.66858186,60117.0,60116.0,0.0507]
[1720034812777,2.69858186,60117.0,60116.0,0.0507]
[1720034813393,2.66858186,60117.0,60116.0,0.0507]
[1720034814111,2.70013003,60117.0,60116.0,0.0507]
[1720034814307,2.73013003,60117.0,60116.0,0.0507]
[1720034814527,2.70013003,60117.0,60116.0,0.0507]
[1720034814937,2.70013003,60117.0,60116.0,0.0508]
[1720034815141,2.70013003,60117.0,60116.0,0.0509]
[1720034815536,2.03476203,60117.0,60116.0,0.0509]
[1720034815703,2.00331386,60117.0,60116.0,0.0509]
[1720034816127,2.00331386,60117.0,60116.0,0.0508]
[1720034816369,1.20438786,60117.0,60116.0,0.2110988]
[1720034816600,1.20438786,60117.0,60116.0,0.2340988]
[1720034816601,1.12423204,60117.0,60116.0,0.2340988]
[1720034816999,0.86553204,60117.0,60116.0,0.2340988]
[1720034817223,0.30073204,60117.0,60116.0,0.2340988]
[1720034819009,0.30073204,60117.0,60116.0,0.4004438]
[1720034819215,0.30073204,60117.0,60116.0,0.7331338]
[1720034819447,0.30083204,60117.0,60116.0,0.7331338]
[1720034819623,0.00083204,60117.0,60116.0,0.7331338]
[1720034819988,0.00083204,60117.0,60116.0,1.3985138]
[1720034820306,0.00083204,60117.0,60116.0,1.0658238]
[1720034820967,0.00083204,60117.0,60116.0,1.9683138]
[1720034821247,0.00083204,60117.0,60116.0,2.0016738]
[1720034821468,0.00083204,60117.0,60116.0,1.9936738]
[1720034822040,0.00083204,60117.0,60116.0,1.9806738]
[1720034822240,0.00083204,60117.0,60116.0,1.9946738]
[1720034822848,0.00083204,60117.0,60116.0,1.9936738]
[1720034823056,0.00083204,60117.0,60116.0,2.0076738]
[1720034823253,0.00083204,60117.0,60116.0,1.6749838]
[1720034823456,0.00083204,60117.0,60116.0,1.6889838]
[1720034823806,0.00083204,60117.0,60116.0,2.0216738]
[1720034824216,0.08015582,60119.0,60118.0,0.362275]
[1720034824361,0.08015582,60119.0,60118.0,0.7119128]
[1720034824586,0.08015582,60119.0,60118.0,1.3772678]
[1720034824970,0.08015582,60119.0,60118.0,1.3771678]
[1720034825573,0.08015582,60119.0,60118.0,1.3770678]
[1720034826240,0.08015582,60119.0,60118.0,1.3910678]
[1720034826645,0.08015582,60119.0,60118.0,1.4050678]
[1720034828457,0.08015582,60119.0,60118.0,1.0723888]
[1720034828631,0.08015582,60119.0,60118.0,0.2178988]
[1720034829045,0.08015582,60119.0,60118.0,0.2177988]
[1720034829199,0.08015582,60119.0,60118.0,0.3841378]
[1720034830332,0.08015582,60119.0,60118.0,0.4071378]
[1720034830760,0.6438,60132.0,60125.0,0.52846]
[1720034830955,0.06,60131.0,60125.0,0.7117588]
[1720034831160,0.5838,60132.0,60125.0,1.3770388]
[1720034831367,0.08015582,60131.0,60128.0,0.861057]
[1720034831578,0.08015582,60131.0,60128.0,1.0442558]
[1720034832218,0.08015582,60131.0,60128.0,1.0441558]
[1720034833213,0.1999,60138.0,60128.0,1.3767788]
[1720034833635,0.1999,60138.0,60128.0,1.3907788]
[1720034834538,0.1999,60138.0,60128.0,1.4007788]
[1720034837779,0.3284,60140.0,60128.0,1.4007788]
[1720034837954,0.00938178,60141.0,60128.0,1.9334018]
[1720034838137,0.00938178,60141.0,60128.0,1.6341388]
[1720034838369,0.14934082,60139.0,60128.0,1.5007788]
[1720034838575,0.06,60137.0,60128.0,1.5007788]
[1720034838776,0.06,60138.0,60128.0,1.4867788]
[1720034838976,0.14934082,60139.0,60128.0,1.5201388]
[1720034839177,0.08934082,60139.0,60128.0,1.5341388]
[1720034839636,0.08934082,60139.0,60128.0,1.5201388]
[1720034839820,0.08934082,60139.0,60128.0,1.5101388]
[1720034840019,0.06,60138.0,60128.0,1.5241388]
[1720034840231,0.06,60134.0,60128.0,0.5069098]
[1720034840428,0.03,60133.0,60128.0,0.8115328]
[1720034840628,0.13606883,60132.0,60130.0,0.0295]
[1720034840983,0.13606883,60132.0,60131.0,0.2127988]
[1720034841167,0.07606883,60132.0,60131.0,0.2127988]
[1720034841529,0.13606883,60132.0,60131.0,0.2127988]
[1720034841725,0.13606883,60132.0,60131.0,0.2126988]
[1720034842126,0.13606883,60132.0,60131.0,0.2125988]
[1720034843073,0.13606883,60132.0,60131.0,0.2265988]
[1720034843236,0.30236883,60132.0,60131.0,0.2035988]
[1720034843439,0.30236883,60132.0,60131.0,0.0435]
[1720034843440,1.13476983,60132.0,60131.0,0.0435]
[1720034843642,1.13476983,60132.0,60131.0,0.0425]
[1720034843643,1.46737083,60132.0,60131.0,0.0425]
[1720034843875,1.46737083,60132.0,60131.0,0.0335]
[1720034844269,1.82824423,60132.0,60131.0,0.0385]
[1720034844499,2.42724423,60132.0,60131.0,0.0335]
[1720034845092,2.42724423,60132.0,60120.0,0.03]
[1720034845093,1.031831,60121.0,60120.0,0.03]
[1720034845298,1.031831,60121.0,60120.0,0.1902988]
[1720034845299,1.77731082,60121.0,60120.0,0.1902988]
[1720034845508,2.10997282,60121.0,60120.0,0.03]
[1720034845785,1.80625793,60121.0,60120.0,0.03]
[1720034846183,1.80615793,60121.0,60120.0,0.03]